bitfinex/quotes_BTCUSD_20250225
["timestamp","ask_amount","ask_price","bid_price","bid_amount"]
[1740463641917,0.15,92149.0,92117.0,0.01254793]
[1740463642119,0.15,92149.0,92119.0,0.0754]
[1740463642545,0.15,92149.0,92120.0,0.00151963]
[1740463642742,0.3265,92150.0,92122.0,0.0481]
[1740463643118,0.007,92152.0,92117.0,0.01254793]
[1740463643119,0.007,92152.0,92124.0,0.0826]
[1740463643333,0.15,92157.0,92126.0,0.0826]
[1740463643542,0.002,92149.0,92128.0,0.0826]
[1740463643752,0.007,92151.0,92128.0,0.0826]
[1740463644186,0.15699733,92155.0,92128.0,0.0826]
[1740463644454,0.00699733,92150.0,92128.0,0.0826]
[1740463645332,0.15,92148.0,92128.0,0.0826]
[1740463645802,0.15,92146.0,92128.0,0.0826]
[1740463646182,0.00699745,92145.0,92128.0,0.0826]
[1740463647369,0.00799745,92145.0,92128.0,0.0826]
[1740463647569,0.3265,92144.0,92128.0,0.0826]
[1740463647981,0.15,92143.0,92129.0,0.01307]
[1740463648386,0.15,92143.0,92128.0,0.0826]
[1740463652444,0.151,92143.0,92128.0,0.0826]
[1740463653129,0.152,92143.0,92128.0,0.0826]
[1740463654395,0.152,92143.0,92130.0,0.0791]
[1740463654952,0.151,92143.0,92130.0,0.0791]
[1740463655168,0.15,92143.0,92130.0,0.0791]
[1740463655636,0.151,92143.0,92130.0,0.0791]
[1740463655803,0.15,92143.0,92130.0,0.0791]
[1740463657223,0.00699812,92142.0,92130.0,0.0791]
[1740463657450,0.151,92143.0,92130.0,0.0791]
[1740463657892,0.15,92143.0,92130.0,0.0791]
[1740463663917,0.14856193,92143.0,92130.0,0.0791]
[1740463664136,0.00340321,92142.0,92130.0,0.0791]
[1740463664394,0.00340321,92142.0,92132.0,0.0786]
[1740463666019,0.00340321,92141.0,92132.0,0.0786]
[1740463666430,0.00340321,92141.0,92134.0,0.01454085]
[1740463666633,0.00340321,92141.0,92136.0,0.01454085]
[1740463666782,0.00340321,92141.0,92140.0,0.01454085]
[1740463666984,0.00340321,92141.0,92139.0,0.076]
[1740463668477,0.00440321,92141.0,92139.0,0.077]
[1740463669202,0.00540321,92141.0,92139.0,0.077]
[1740463669402,0.00340321,92140.0,92139.0,0.077]
[1740463669603,0.00340321,92140.0,92139.0,0.08957]
[1740463670301,0.00340321,92140.0,92139.0,0.08857]
[1740463670679,0.00440321,92140.0,92139.0,0.08957]
[1740463670879,0.00440321,92140.0,92139.0,0.077]
[1740463671088,0.00540321,92140.0,92139.0,0.077]
[1740463671958,0.00540321,92140.0,92139.0,0.0778485]
[1740463680425,0.00540321,92140.0,92139.0,0.07936785]
[1740463680707,0.00540321,92140.0,92139.0,0.0778485]
[1740463680901,0.00540321,92140.0,92139.0,0.09202263]
[1740463681107,0.00540321,92140.0,92139.0,0.13560335]
[1740463681759,0.0224286,92140.0,92139.0,0.13560335]
[1740463682137,0.23937243,92168.0,92140.0,0.0773]
[1740463682512,0.01702548,92165.0,92140.0,0.0773]
[1740463682720,0.23937243,92168.0,92140.0,0.0773]
[1740463682885,0.0069983,92164.0,92140.0,0.0773]
[1740463684273,0.002,92165.0,92140.0,0.0773]
[1740463684680,0.003697,92165.0,92140.0,0.0773]
[1740463684930,0.001697,92165.0,92140.0,0.0773]
[1740463685096,0.001697,92165.0,92141.0,0.09349033]
[1740463685298,0.002,92164.0,92141.0,0.09349033]
[1740463685463,0.001697,92165.0,92141.0,0.09349033]
[1740463685668,0.002,92164.0,92141.0,0.09349033]
[1740463686109,0.003697,92165.0,92142.0,0.0752]
[1740463686315,0.005697,92165.0,92143.0,0.01347388]
[1740463686525,0.00699831,92164.0,92143.0,0.01347388]
[1740463686942,0.0170249,92159.0,92142.0,0.0752]
[1740463687535,0.00699831,92158.0,92142.0,0.07563066]
[1740463689899,0.00699831,92158.0,92142.0,0.07663066]
[1740463690819,0.15,92156.0,92142.0,0.00143066]
[1740463691341,0.13523164,92157.0,92142.0,0.00143066]
[1740463692109,0.005,92156.0,92142.0,0.00143066]
[1740463692368,0.13523164,92157.0,92142.0,0.00143066]
[1740463692601,0.13523164,92157.0,92142.0,0.00043066]
[1740463692840,0.14023164,92157.0,92142.0,0.00043066]
[1740463693008,0.13523164,92157.0,92142.0,0.00043066]
[1740463693519,0.15,92156.0,92142.0,0.00043066]
[1740463694243,0.157,92156.0,92142.0,0.00043066]
[1740463694567,0.15,92156.0,92142.0,0.00043066]
[1740463694772,0.155,92156.0,92142.0,0.00043066]
[1740463694976,0.15,92156.0,92142.0,0.00043066]
[1740463695427,0.157,92156.0,92142.0,0.00043066]
[1740463695599,0.00340369,92155.0,92142.0,0.00043066]
[1740463697030,0.00340369,92154.0,92142.0,0.00043066]
[1740463697368,0.01702663,92152.0,92142.0,0.00043066]
[1740463698515,0.00340369,92151.0,92142.0,0.00043066]
[1740463700198,0.00340369,92150.0,92142.0,0.00043066]
[1740463701307,0.00840369,92150.0,92142.0,0.00043066]
[1740463701544,0.01340369,92150.0,92142.0,0.00043066]
[1740463701698,0.00840369,92150.0,92142.0,0.00043066]
[1740463702103,0.01340369,92150.0,92142.0,0.00043066]
[1740463702300,0.0087,92148.0,92126.0,0.082]
[1740463702502,0.15,92146.0,92128.0,0.00097779]
[1740463703742,0.154,92146.0,92128.0,0.00097779]
[1740463704623,0.00340369,92145.0,92128.0,0.00097779]
[1740463705701,0.03016112,92147.0,92128.0,0.00097779]
[1740463706020,0.003,92145.0,92128.0,0.00097779]
[1740463706224,0.00340379,92144.0,92128.0,0.00097779]
[1740463706757,0.01702775,92141.0,92128.0,0.00097779]
[1740463707651,0.02268702,92141.0,92128.0,0.00097779]
[1740463707851,0.01902775,92141.0,92128.0,0.00097779]
[1740463709075,0.02102775,92141.0,92128.0,0.00097779]
[1740463714516,0.03016112,92140.0,92128.0,0.00097779]
[1740463715681,0.03216112,92140.0,92128.0,0.00097779]
[1740463715891,0.03316112,92140.0,92128.0,0.00097779]
[1740463720247,0.01089267,92139.0,92128.0,0.00097779]
[1740463721447,0.03116112,92140.0,92128.0,0.00097779]
[1740463721657,0.001,92139.0,92128.0,0.00097779]
[1740463722098,0.002,92139.0,92128.0,0.00097779]
[1740463726476,0.03216112,92139.0,92128.0,0.00097779]
[1740463726983,0.01702783,92137.0,92128.0,0.00097779]
[1740463728599,0.01802783,92137.0,92128.0,0.00097779]
[1740463742686,0.01702783,92137.0,92128.0,0.00097779]
[1740463743138,0.03016112,92136.0,92128.0,0.00097779]
[1740463743339,0.0594995,92136.0,92128.0,0.00097779]
[1740463743542,0.02,92133.0,92128.0,0.00097779]
[1740463743679,0.02,92131.0,92128.0,0.00097779]
[1740463743881,0.02,92130.0,92128.0,0.00097779]
[1740463744130,0.03454085,92129.0,92128.0,0.00097779]
[1740463744328,0.22410601,92129.0,92128.0,0.00097779]
[1740463744882,0.21470197,92129.0,92128.0,0.00097779]
[1740463745450,0.18716112,92129.0,92128.0,0.00097779]
[1740463745625,0.03716112,92129.0,92128.0,0.00097779]
[1740463746122,0.03716112,92129.0,92128.0,0.04737779]
[1740463746123,0.04416112,92129.0,92128.0,0.04737779]
[1740463746525,0.04416112,92129.0,92128.0,0.12937779]
[1740463746897,0.03716112,92129.0,92128.0,0.00097779]
[1740463747507,0.03016112,92129.0,92128.0,0.00097779]
[1740463747684,0.04719144,92129.0,92128.0,0.00097779]
[1740463747891,0.03016112,92129.0,92128.0,0.00097779]
[1740463748089,0.03416112,92129.0,92128.0,0.00097779]
[1740463748507,0.04016112,92129.0,92128.0,0.00097779]
[1740463748712,0.04617723,92129.0,92128.0,0.00097779]
[1740463748956,0.04317723,92129.0,92128.0,0.00097779]
[1740463749309,0.03617723,92129.0,92128.0,0.00097779]
[1740463749496,0.03617723,92129.0,92117.0,0.04412211]
[1740463749698,0.04322018,92129.0,92117.0,0.04412211]
[1740463749915,0.00632202,92128.0,92117.0,0.04412211]
[1740463750118,0.03016112,92127.0,92117.0,0.04412211]
[1740463751198,0.03516112,92127.0,92117.0,0.04412211]
[1740463751603,0.03016112,92127.0,92117.0,0.04412211]
[1740463751867,0.03616112,92127.0,92117.0,0.04412211]
[1740463752075,0.00695261,92126.0,92117.0,0.04412211]
[1740463753306,0.03454085,92117.0,92114.0,0.0008486]
[1740463753730,0.06387923,92117.0,92114.0,0.0008486]
[1740463753924,0.08091328,92117.0,92114.0,0.0008486]
[1740463754127,0.02,92114.0,92101.0,0.007118]
[1740463754336,0.03016112,92113.0,92101.0,0.007118]
[1740463756530,0.03016112,92113.0,92109.0,0.0498486]
[1740463756732,0.03016112,92113.0,92110.0,0.0772]
[1740463756941,0.03716112,92113.0,92110.0,0.0772]
[1740463757667,0.03016112,92113.0,92110.0,0.0772]
[1740463757821,0.03716112,92113.0,92110.0,0.0772]
[1740463758021,0.04416112,92113.0,92110.0,0.0772]
[1740463759257,0.03716112,92113.0,92110.0,0.0772]
[1740463759463,0.04416112,92113.0,92110.0,0.0772]
[1740463760123,0.00611954,92112.0,92110.0,0.0772]
[1740463760318,0.04416112,92113.0,92110.0,0.0772]
[1740463761066,0.03716112,92113.0,92110.0,0.0772]
[1740463762536,0.007,92112.0,92110.0,0.0772]
[1740463762740,0.03016112,92113.0,92110.0,0.0772]
[1740463763077,0.04416112,92113.0,92110.0,0.0772]
[1740463763440,0.00611954,92112.0,92110.0,0.0772]
[1740463763638,0.01311954,92112.0,92110.0,0.0772]
[1740463763803,0.00611954,92112.0,92110.0,0.0772]
[1740463764196,0.007,92113.0,92110.0,0.0772]
[1740463764368,0.01703423,92112.0,92110.0,0.0772]
[1740463764667,0.007,92113.0,92110.0,0.0772]
[1740463765224,0.017034,92142.0,92110.0,0.0772]
[1740463765433,0.15,92140.0,92110.0,0.07724295]
[1740463765631,0.006,92112.0,92110.0,0.07724295]
[1740463765877,0.012,92112.0,92110.0,4.295e-05]
[1740463766089,0.15,92138.0,92110.0,4.295e-05]
[1740463766090,0.02689352,92123.0,92110.0,4.295e-05]
[1740463767069,0.006,92112.0,92110.0,4.295e-05]
[1740463768691,0.012,92112.0,92110.0,4.295e-05]
[1740463768898,0.006,92112.0,92110.0,4.295e-05]
[1740463769236,0.007989,92112.0,92110.0,4.295e-05]
[1740463769475,0.001989,92112.0,92110.0,4.295e-05]
[1740463769674,0.008989,92112.0,92110.0,4.295e-05]
[1740463769794,0.015989,92112.0,92110.0,4.295e-05]
[1740463770002,0.008989,92112.0,92110.0,4.295e-05]
[1740463770279,0.001989,92112.0,92110.0,4.295e-05]
[1740463770430,0.015989,92112.0,92110.0,4.295e-05]
[1740463770608,0.008989,92112.0,92110.0,4.295e-05]
[1740463770807,0.4765,92111.0,92110.0,4.295e-05]
[1740463772452,0.4835,92111.0,92110.0,4.295e-05]
[1740463772878,0.4905,92111.0,92110.0,4.295e-05]
[1740463773088,0.15,92110.0,92101.0,0.00034794]
[1740463773336,0.15,92110.0,92101.0,0.00047728]
[1740463775208,0.157,92110.0,92101.0,0.00047728]
[1740463775414,0.164,92110.0,92101.0,0.00047728]
[1740463775990,0.15,92110.0,92101.0,0.00047728]
[1740463776401,0.164,92110.0,92101.0,0.00047728]
[1740463776662,0.157,92110.0,92101.0,0.00047728]
[1740463776872,0.15,92108.0,92101.0,0.00047728]
[1740463777879,0.01703596,92107.0,92101.0,0.00047728]
[1740463778077,0.15,92108.0,92101.0,0.00047728]
[1740463778501,0.157,92108.0,92101.0,0.00047728]
[1740463778753,0.15,92108.0,92101.0,0.00047728]
[1740463778924,0.157,92108.0,92101.0,0.00047728]
[1740463779087,0.007,92107.0,92101.0,0.00047728]
[1740463779291,0.157,92108.0,92101.0,0.00047728]
[1740463779751,0.164,92108.0,92101.0,0.00047728]
[1740463779939,0.157,92108.0,92101.0,0.00047728]
[1740463780262,0.007,92107.0,92101.0,0.00047728]
[1740463780471,0.007,92107.0,92101.0,0.00132588]
[1740463780906,0.01703591,92106.0,92101.0,0.00132588]
[1740463781113,0.007,92107.0,92101.0,0.00132588]
[1740463781481,0.21195686,92107.0,92102.0,0.0808]
[1740463782208,0.007,92106.0,92102.0,0.0808]
[1740463782627,0.21195686,92107.0,92102.0,0.0808]
[1740463782950,0.22595686,92107.0,92102.0,0.0808]
[1740463783152,0.21895686,92107.0,92101.0,0.00132588]
[1740463783460,0.007,92106.0,92101.0,0.00132588]
[1740463784257,0.157,92106.0,92101.0,0.00132588]
[1740463784457,0.00066312,92101.0,92097.0,0.0823]
[1740463785722,0.00666312,92101.0,92097.0,0.0833]
[1740463786114,0.01366312,92101.0,92097.0,0.0843]
[1740463786758,0.013,92101.0,92097.0,0.0843]
[1740463787772,0.013,92101.0,92099.0,0.0794]
[1740463787773,0.007,92101.0,92099.0,0.0794]
[1740463788200,0.014,92101.0,92099.0,0.0794]
[1740463788340,0.007,92101.0,92099.0,0.0794]
[1740463788557,0.012,92101.0,92099.0,0.0794]
[1740463788783,0.007,92101.0,92099.0,0.0794]
[1740463788957,0.00556134,92101.0,92099.0,0.0794]
[1740463789160,0.004,92101.0,92099.0,0.0794]
[1740463789563,0.008,92101.0,92099.0,0.0794]
[1740463789764,0.012,92101.0,92100.0,0.0579]
[1740463789976,0.012,92101.0,92100.0,0.1255]
[1740463790182,0.008,92101.0,92100.0,0.1255]
[1740463790558,0.008663,92101.0,92100.0,0.1255]
[1740463791854,0.000663,92101.0,92100.0,0.1255]
[1740463792062,0.001663,92101.0,92100.0,0.1255]
[1740463792405,0.000663,92101.0,92100.0,0.1255]
[1740463792760,0.02169776,92101.0,92100.0,0.1265]
[1740463792977,0.01769776,92101.0,92100.0,0.1265]
[1740463793381,0.01873196,92101.0,92100.0,0.1255]
[1740463793559,0.01973196,92101.0,92100.0,0.1255]
[1740463794835,0.02173196,92101.0,92100.0,0.1255]
[1740463795034,0.02073196,92101.0,92100.0,0.1255]
[1740463795456,0.02073196,92101.0,92100.0,0.1265]
[1740463796843,0.02073196,92101.0,92100.0,0.125837]
[1740463806342,0.02073196,92101.0,92100.0,0.1266856]
[1740463816202,0.02073196,92101.0,92100.0,0.0018486]
[1740463816776,0.0016972,92101.0,92100.0,0.0018486]
[1740463816977,0.0056972,92101.0,92100.0,0.0018486]
[1740463817222,0.0056972,92101.0,92100.0,0.0008486]
[1740463817437,0.0016972,92101.0,92100.0,0.0008486]
[1740463817853,0.0036972,92101.0,92100.0,0.0008486]
[1740463818266,0.0016972,92101.0,92100.0,0.0008486]
[1740463818490,0.36765406,92101.0,92100.0,0.0008486]
[1740463818724,0.36765406,92101.0,92082.0,0.07252283]
[1740463818725,0.15,92100.0,92082.0,0.07252283]
[1740463818881,0.15,92098.0,92082.0,0.07252283]
[1740463819809,0.01703753,92095.0,92082.0,0.07252283]
[1740463821383,0.15,92098.0,92082.0,0.07252283]
[1740463821717,0.003,92095.0,92082.0,0.07252283]
[1740463822281,0.15,92098.0,92082.0,0.06765069]
[1740463822507,0.003,92095.0,92082.0,0.06765069]
[1740463822923,0.003,92095.0,92080.0,0.0008485]
[1740463823152,0.154,92098.0,92080.0,0.0008485]
[1740463823354,0.15,92096.0,92080.0,0.0008485]
[1740463824238,0.003,92095.0,92080.0,0.0008485]
[1740463824615,0.15,92096.0,92080.0,0.0008485]
[1740463824851,0.154,92096.0,92080.0,0.0008485]
[1740463825000,0.004,92095.0,92080.0,0.0008485]
[1740463825606,0.01703874,92092.0,92080.0,0.0008485]
[1740463827178,0.01903874,92092.0,92080.0,0.0008485]
[1740463827373,0.15,92090.0,92080.0,0.0008485]
[1740463828792,0.154,92090.0,92080.0,0.0008485]
[1740463829598,0.154,92090.0,92075.0,0.0654845]
[1740463830491,0.152,92090.0,92075.0,0.0654845]
[1740463830893,0.154,92090.0,92075.0,0.0654845]
[1740463831228,0.152,92090.0,92075.0,0.0654845]
[1740463831651,0.13368904,92091.0,92075.0,0.0654845]
[1740463832027,0.13368904,92091.0,92070.0,0.0457]
[1740463832575,0.007,92090.0,92070.0,0.1284]
[1740463833418,0.13368904,92089.0,92070.0,0.1284]
[1740463833828,0.15,92088.0,92070.0,0.1284]
[1740463835470,0.162,92088.0,92070.0,0.1284]
[1740463836194,0.01703949,92085.0,92070.0,0.1284]
[1740463837431,0.02203949,92085.0,92070.0,0.1284]
[1740463837886,0.01703949,92085.0,92070.0,0.1284]
[1740463838111,0.02203949,92085.0,92070.0,0.1284]
[1740463838367,0.02703949,92085.0,92070.0,0.1284]
[1740463838618,0.03203949,92085.0,92070.0,0.1284]
[1740463839176,0.03203949,92085.0,92071.0,0.075]
[1740463839410,0.03203949,92085.0,92073.0,0.0819]
[1740463839611,0.03203949,92085.0,92075.0,0.0481]
[1740463839813,0.03203949,92085.0,92077.0,0.1209]
[1740463840046,0.015,92085.0,92078.0,0.0753]
[1740463840258,0.01,92085.0,92079.0,0.0456]
[1740463840469,0.015,92085.0,92081.0,0.0456]
[1740463840673,0.015,92085.0,92082.0,0.0818]
[1740463840883,0.005,92085.0,92082.0,0.0818]
[1740463841058,0.15,92088.0,92082.0,0.0818]
[1740463841285,0.005,92085.0,92082.0,0.0818]
[1740463841446,0.005,92085.0,92084.0,0.1484]
[1740463841706,0.005,92085.0,92084.0,0.1684]
[1740463842110,0.0016974,92091.0,92090.0,0.163]
[1740463842343,0.0016974,92091.0,92090.0,0.161]
[1740463843937,0.0016974,92091.0,92090.0,0.16]
[1740463844098,0.0016974,92091.0,92090.0,0.159]
[1740463844509,0.01973261,92091.0,92090.0,0.163]
[1740463844729,0.01973261,92091.0,92090.0,0.159]
[1740463844927,0.02073261,92091.0,92090.0,0.163]
[1740463845125,0.02173261,92091.0,92090.0,0.167]
[1740463845336,0.02073261,92091.0,92090.0,0.163]
[1740463845732,0.02173261,92091.0,92090.0,0.167]
[1740463852001,0.02173261,92091.0,92090.0,0.1678487]
[1740463854174,0.01873261,92091.0,92090.0,0.1598487]
[1740463854351,0.01973261,92091.0,92090.0,0.1638487]
[1740463854756,0.02073261,92091.0,92090.0,0.1688487]
[1740463857014,0.01973261,92091.0,92090.0,0.1648487]
[1740463857386,0.02073261,92091.0,92090.0,0.1688487]
[1740463858333,0.01973261,92091.0,92090.0,0.1638487]
[1740463858539,0.02073261,92091.0,92090.0,0.1688487]
[1740463858941,0.02073261,92091.0,92090.0,0.11139871]
[1740463859061,0.02073261,92091.0,92090.0,0.0570487]
[1740463859463,0.0036974,92091.0,92090.0,0.0570487]
[1740463859863,0.0026974,92091.0,92090.0,0.0530487]
[1740463860112,0.0036974,92091.0,92090.0,0.0570487]
[1740463860565,0.0026974,92091.0,92090.0,0.0520487]
[1740463861002,0.0036974,92091.0,92090.0,0.0570487]
[1740463861206,0.0036974,92091.0,92076.0,0.02]
[1740463861404,0.0036974,92091.0,92077.0,0.02]
[1740463861685,0.0036974,92091.0,92074.0,0.3240489]
[1740463861897,0.0026974,92091.0,92074.0,0.3240489]
[1740463862177,0.0036974,92091.0,92090.0,0.005]
[1740463862384,0.0036974,92091.0,92077.0,0.0828]
[1740463862385,0.0026974,92091.0,92077.0,0.0828]
[1740463862679,0.0026974,92091.0,92077.0,0.0878]
[1740463863114,0.0036974,92091.0,92090.0,0.004]
[1740463863507,0.0026974,92091.0,92077.0,0.0878]
[1740463863923,0.0026974,92091.0,92077.0,0.0918]
[1740463864238,0.0016974,92091.0,92077.0,0.0828]
[1740463864396,0.0026974,92091.0,92077.0,0.0828]
[1740463864565,0.0046974,92091.0,92077.0,0.0828]
[1740463864768,0.0036974,92091.0,92077.0,0.0828]
[1740463864976,0.0076974,92091.0,92090.0,0.0008487]
[1740463865776,0.02073505,92091.0,92090.0,0.0008487]
[1740463866113,0.01873505,92091.0,92090.0,0.0008487]
[1740463866278,0.02173505,92091.0,92090.0,0.0008487]
[1740463867248,0.02473505,92091.0,92090.0,0.0008487]
[1740463868423,0.02173505,92091.0,92090.0,0.0008487]
[1740463868907,0.0056974,92091.0,92074.0,0.0475]
[1740463869260,0.0026974,92091.0,92074.0,0.0475]
[1740463870139,0.0016974,92091.0,92074.0,0.0475]
[1740463870345,0.0026974,92091.0,92074.0,0.0475]
[1740463870796,0.0016974,92091.0,92074.0,0.0475]
[1740463870989,0.0026974,92091.0,92074.0,0.0475]
[1740463871868,0.0026974,92091.0,92080.0,0.02]
[1740463872071,0.5026974,92091.0,92089.0,0.0766]
[1740463872245,0.5026974,92091.0,92089.0,0.0966]
[1740463872451,0.5026974,92091.0,92090.0,0.0487]
[1740463872627,0.5026974,92091.0,92090.0,0.0687]
[1740463872817,0.6526974,92091.0,92090.0,0.0687]
[1740463873279,0.5187334,92091.0,92090.0,0.0687]
[1740463873855,0.6687334,92091.0,92090.0,0.0687]
[1740463874869,0.6687334,92091.0,92090.0,0.0487]
[1740463875071,0.6697334,92091.0,92090.0,0.0487]
[1740463875512,0.15,92090.0,92084.0,0.02]
[1740463875696,0.15,92090.0,92082.0,0.0807]
[1740463876469,0.15,92090.0,92081.0,0.0461]
[1740463876803,0.0187334,92091.0,92084.0,0.004]
[1740463877013,0.0187334,92091.0,92082.0,0.0008487]
[1740463877338,0.0187334,92091.0,92082.0,0.0068487]
[1740463877543,0.0187334,92091.0,92082.0,0.0048487]
[1740463877745,0.0187334,92091.0,92072.0,0.02]
[1740463877746,0.0187334,92091.0,92072.0,0.0458]
[1740463877949,0.0187334,92091.0,92081.0,0.002]
[1740463878160,0.0187334,92091.0,92072.0,0.0458]
[1740463878368,0.077,92090.0,92082.0,0.002]
[1740463879199,0.077,92090.0,92082.0,0.006]
[1740463879593,0.15,92088.0,92082.0,0.006]
[1740463879808,0.15,92088.0,92072.0,0.0458]
[1740463880808,0.15,92088.0,92072.0,0.1233]
[1740463882736,0.15,92088.0,92075.0,0.02]
[1740463883160,0.01703833,92085.0,92075.0,0.02]
[1740463884111,0.01703833,92085.0,92075.0,0.005]
[1740463884323,0.01703833,92085.0,92080.0,0.005]
[1740463885571,0.01703833,92085.0,92077.0,0.005]
[1740463885770,0.01703833,92085.0,92074.0,0.005]
[1740463885986,0.01703833,92085.0,92080.0,0.005]
[1740463886135,0.01703833,92085.0,92075.0,0.005]
[1740463886344,0.01703833,92085.0,92075.0,0.003]
[1740463886522,0.01703833,92085.0,92075.0,0.002]
[1740463886724,0.01703833,92085.0,92079.0,0.005]
[1740463887150,0.01703833,92085.0,92080.0,0.003]
[1740463887558,0.01703833,92085.0,92075.0,0.001]
[1740463887761,0.01703833,92085.0,92072.0,0.04553533]
[1740463887940,0.01703833,92085.0,92079.0,0.003]
[1740463888388,0.01703833,92085.0,92072.0,0.00041771]
[1740463888946,0.01703833,92085.0,92080.0,0.0008488]
[1740463889799,0.01703833,92085.0,92062.0,0.3108751]
[1740463890005,0.01703833,92085.0,92054.0,0.0098]
[1740463890200,0.01703833,92085.0,92075.0,0.002]
[1740463890587,0.15,92088.0,92055.0,0.00152062]
[1740463890998,0.15,92088.0,92062.0,0.002]
[1740463891453,0.15,92088.0,92063.0,0.0458]
[1740463891835,0.15,92088.0,92064.0,0.00152062]
[1740463892901,0.15,92088.0,92065.0,0.0813]
[1740463893762,0.15,92088.0,92063.0,0.0458]
[1740463894563,0.00814399,92066.0,92063.0,0.0458]
[1740463894992,0.0251838,92066.0,92063.0,0.0458]
[1740463896432,0.0261838,92066.0,92063.0,0.0458]
[1740463896632,0.15,92065.0,92063.0,0.0458]
[1740463897314,0.16774414,92065.0,92063.0,0.0458]
[1740463897628,0.16874414,92065.0,92063.0,0.0458]
[1740463897836,0.16874414,92065.0,92053.0,0.13924]
[1740463899169,0.16774414,92065.0,92053.0,0.13924]
[1740463899527,0.01874414,92065.0,92053.0,0.13924]
[1740463899689,0.01298865,92065.0,92053.0,0.13924]
[1740463899912,0.002,92065.0,92053.0,0.13924]
[1740463900543,0.01920458,92065.0,92054.0,0.00152062]
[1740463900745,0.02020458,92065.0,92054.0,0.00152062]
[1740463901237,0.01920458,92065.0,92054.0,0.00152062]
[1740463901458,0.02020458,92065.0,92054.0,0.00152062]
[1740463901634,0.02020458,92065.0,92053.0,0.140089]
[1740463902291,0.01920458,92065.0,92053.0,0.140089]
[1740463902499,0.02020458,92065.0,92053.0,0.140089]
[1740463902702,0.01820458,92065.0,92053.0,0.140089]
[1740463902905,0.00814399,92066.0,92053.0,0.140089]
[1740463903116,0.002,92065.0,92053.0,0.140089]
[1740463903328,0.01704022,92063.0,92053.0,0.140089]
[1740463903747,0.01704022,92063.0,92053.0,0.130249]
[1740463904579,0.01804022,92063.0,92053.0,0.130249]
[1740463905747,0.01904022,92063.0,92053.0,0.130249]
[1740463906785,0.01904022,92063.0,92054.0,0.00152072]
[1740463908234,0.01804022,92063.0,92053.0,0.13176965]
[1740463908391,0.01704022,92063.0,92053.0,0.13176965]
[1740463908826,0.01804022,92063.0,92053.0,0.13176965]
[1740463909033,0.01704022,92063.0,92053.0,0.13176965]
[1740463909440,0.01804022,92063.0,92053.0,0.13176965]
[1740463909615,0.01904022,92063.0,92053.0,0.13176965]
[1740463910006,0.01804022,92063.0,92053.0,0.13176965]
[1740463910432,0.01904022,92063.0,92053.0,0.13176965]
[1740463911006,0.0497,92091.0,92053.0,0.130249]
[1740463911211,0.01704027,92077.0,92054.0,0.0142418]
[1740463911649,0.00833045,92057.0,92053.0,0.000849]
[1740463913077,0.00841,92057.0,92053.0,0.000849]
[1740463914507,0.02545138,92057.0,92053.0,0.000849]
[1740463915934,0.02545138,92057.0,92053.0,0.002849]
[1740463916462,0.02545138,92057.0,92053.0,0.000849]
[1740463916599,0.02545138,92057.0,92053.0,0.002849]
[1740463927982,0.02545138,92057.0,92053.0,0.000849]
[1740463928396,0.02545138,92057.0,92053.0,0.001849]
[1740463932677,0.02545138,92057.0,92055.0,0.0497]
[1740463932893,0.02545138,92057.0,92056.0,0.00152064]
[1740463933097,0.02545138,92057.0,92054.0,0.0757]
[1740463935112,0.02545138,92057.0,92054.0,0.0767]
[1740463935729,0.02545138,92057.0,92054.0,0.001]
[1740463937229,0.02545138,92057.0,92053.0,0.000849]
[1740463937635,0.02545138,92057.0,92054.0,0.001]
[1740463938415,0.02545138,92057.0,92053.0,0.000849]
[1740463938615,0.02545138,92057.0,92048.0,0.027917]
[1740463938842,0.02545138,92057.0,92047.0,0.0008483]
[1740463939247,0.02545138,92057.0,92054.0,0.001]
[1740463939451,0.00841,92057.0,92054.0,0.001]
[1740463940576,0.00841,92057.0,92048.0,0.045]
[1740463940759,0.00841,92057.0,92049.0,0.0015207]
[1740463942576,0.00841,92057.0,92048.0,0.045]
[1740463943326,0.00841,92057.0,92047.0,0.0008483]
[1740463945557,7.955e-05,92057.0,92049.0,0.0753]
[1740463945765,0.01704086,92055.0,92051.0,0.0753]
[1740463946045,0.01704086,92055.0,92052.0,0.0494]
[1740463946280,0.01704086,92055.0,92052.0,0.05092044]
[1740463946475,0.01704086,92055.0,92052.0,0.0494]
[1740463946683,0.01704086,92055.0,92053.0,0.00152062]
[1740463947370,0.15,92087.0,92053.0,0.00152062]
[1740463947571,0.15,92087.0,92053.0,0.01520751]
[1740463947795,0.001,92055.0,92053.0,0.01520751]
[1740463948179,0.00818942,92064.0,92053.0,0.01520751]
[1740463948332,0.001,92055.0,92054.0,0.01505558]
[1740463948538,0.00818942,92064.0,92054.0,0.01505558]
[1740463948737,0.00818942,92064.0,92055.0,0.00152057]
[1740463948936,0.00818942,92064.0,92055.0,0.00195139]
[1740463949604,0.00818942,92064.0,92055.0,0.00043082]
[1740463950004,0.00818942,92064.0,92053.0,0.0008482]
[1740463950005,0.00056918,92055.0,92053.0,0.0038482]
[1740463950179,0.00056918,92055.0,92053.0,0.0068482]
[1740463950384,0.00862125,92064.0,92053.0,0.0038482]
[1740463950593,0.00862125,92064.0,92055.0,0.003]
[1740463950792,0.00862125,92064.0,92053.0,0.0008482]
[1740463951145,0.00862125,92064.0,92055.0,0.002]
[1740463951714,0.00862125,92064.0,92055.0,0.003]
[1740463952454,0.00862125,92064.0,92055.0,0.00452067]
[1740463952801,0.00862125,92064.0,92056.0,0.01300689]
[1740463952981,0.00862125,92064.0,92057.0,0.00152057]
[1740463953619,0.00862125,92064.0,92055.0,0.003]
[1740463953998,0.00862125,92064.0,92053.0,0.0028482]
[1740463954241,0.01704036,92062.0,92054.0,0.00152057]
[1740463954362,0.01704036,92062.0,92057.0,0.002]
[1740463954787,0.01704036,92062.0,92057.0,0.004]
[1740463955699,0.01704036,92062.0,92058.0,0.01472746]
[1740463955909,0.01704036,92062.0,92059.0,0.0808]
[1740463956091,0.01704036,92062.0,92060.0,0.0482204]
[1740463956855,0.01804036,92062.0,92060.0,0.0482204]
[1740463957549,0.01704036,92062.0,92061.0,0.1275]
[1740463957694,0.01704036,92062.0,92061.0,0.12902032]